[Event "WJCC U20 Girls 2019"]
[Site "New Delhi"]
[Date "2019.10.18"]
[Round "5.10"]
[White "Katkov, Michelle"]
[Black "Solozhenkina, Elizaveta"]
[Result "0-1"]
[ECO "B22"]
[WhiteElo "2106"]
[BlackElo "2283"]
[Annotator "NA"]
[PlyCount "96"]
[EventDate "2019.10.15"]
[EventType "swiss"]
[EventCountry "IND"]
[SourceTitle "playchess.com"]
[Source "ChessBase"]
[SourceQuality "1"]
[TimeControl "40/5400+30:1800+30"]

1. e4 c5 {[%emt 0:00:00]} 2. c3 {[%emt 0:00:00]} d5 {[%emt 0:00:00]} 3. exd5 {[%emt 0:00:00]} Qxd5 {[%emt 0:00:00]} 4. d4 {[%emt 0:00:00]} Nf6 {[%emt 0:00:05]} 5. Nf3 {[%emt 0:00:01]} e6 {[%emt 0:00:08]} 6. Bd3 {[%emt 0:05:02]} Nc6 {[%emt 0:04:08]} 7. O-O {[%emt 0:00:42]} Be7 {[%emt 0:05:02]} 8. Be3 {[%emt 0:08:17]} cxd4 {[%emt 0:01:31]} 9. cxd4 {[%emt 0:00:22]} O-O {[%emt 0:00:27]} 10. Nc3 {[%emt 0:00:03]} Qd6 {[%emt 0:00:42]} 11. Rc1 {[%emt 0:07:32]} Nb4 $11 {[%emt 0:19:35]} 12. Bb1 {[%emt 0:04:21]} b6 {[%emt 0:09:22]} 13. Nb5 {[%emt 0:11:04]} Qd8 {[%emt 0:09:27]} 14. a3 {[%emt 0:09:11]} Ba6 {[%emt 0:05:33]} 15. Nc7 {[%emt 0:04:47]} Bxf1 {[%emt 0:00:09]} 16. Nxa8 {[%emt 0:00:05]} Bxg2 {[%emt 0:01:41]} 17. Kxg2 {[%emt 0:04:53]} Nbd5 {[%emt 0:00:07]} 18. Nxb6 {[%emt 0:01:51]} Qxb6 {[%emt 0:02:58]} 19. Qc2 {[%emt 0:03:38]} Qb7 {[%emt 0:04:32]} 20. Bg5 {[%emt 0:07:07]} g6 {[%emt 0:04:53]} 21. Bxf6 {[%emt 0:04:18]} Nf4+ {[%emt 0:04:50]} 22. Kg3 {[%emt 0:00:27]} Nh5+ {[%emt 0:00:10]} 23. Kg2 {[%emt 0:00:31]} Bxf6 {[%emt 0:00:26]} 24. b4 {[%emt 0:04:40]} Nf4+ {[%emt 0:08:04]} 25. Kg3 {[%emt 0:00:17]} Qb8 {[%emt 0:00:18]} 26. Rd1 {[%emt 0:08:15]} Rd8 {[%emt 0:00:32]} 27. Qd2 {[%emt 0:04:38]} Bxd4 {[%emt 0:12:10]} 28. Qxf4 {[%emt 0:02:46]} Bxf2+ {[%emt 0:00:41]} 29. Kxf2 {[%emt 0:00:10]} Qxf4 {[%emt 0:00:05]} 30. Rd3 Rd7 31. Rxd7 {[%emt 0:00:41]} Kg7 {[%emt 0:00:33]} 32. Rd1 {[%emt 0:03:28]} g5 {[%emt 0:01:15]} 33. Rd4 {[%emt 0:03:06]} Qc1 {[%emt 0:00:18]} 34. Bd3 {[%emt 0:01:27]} h5 {[%emt 0:02:01]} 35. h3 {[%emt 0:00:37]} Qxa3 {[%emt 0:00:42]} 36. b5 {[%emt 0:01:13]} Qc5 {[%emt 0:01:38]} 37. Kg3 {[%emt 0:00:11]} Kf6 {[%emt 0:02:38]} 38. Rd7 {[%emt 0:00:58]} Qe3 {[%emt 0:01:02]} 39. Rd4 {[%emt 0:01:03]} Ke7 {[%emt 0:00:59]} 40. Bf1 {[%emt 0:01:25]} e5 {[%emt 0:00:31]} 41. Rd3 {[%emt 0:30:11]} Qf4+ {[%emt 0:30:11]} 42. Kf2 {[%emt 0:00:00]} g4 {[%emt 0:00:00]} 43. hxg4 {[%emt 0:00:00]} hxg4 {[%emt 0:00:00]} 44. Ra3 {[%emt 0:00:00]} e4 {[%emt 0:00:00]} 45. Rxa7+ {[%emt 0:00:00]} Kf6 {[%emt 0:00:00]} 46. Ra6+ {[%emt 0:00:00]} Kg7 {[%emt 0:00:00]} 47. b6 {[%emt 0:00:00]} exf3 {[%emt 0:00:00]} 48. b7 {[%emt 0:00:00]} g3+ {[%emt 0:00:00]} 0-1

[Event "WJCC U20 Girls 2019"]
[Site "New Delhi"]
[Date "2019.10.18"]
[Round "5.11"]
[White "Toshali, V."]
[Black "Zhu, Jiner"]
[Result "1-0"]
[ECO "A48"]
[WhiteElo "1868"]
[BlackElo "2507"]
[Annotator "ChessBase"]
[PlyCount "55"]
[EventDate "2019.10.15"]
[EventType "swiss"]
[EventCountry "IND"]
[SourceTitle "playchess.com"]
[Source "ChessBase"]
[SourceQuality "1"]
[TimeControl "40/5400+30:1800+30"]

1. d4 {[%emt 0:00:00]} Nf6 {[%emt 0:00:00]} 2. Nf3 {[%emt 0:00:00]} g6 {[%emt 0:00:00]} 3. Bg5 {[%emt 0:00:34]} Bg7 4. Nbd2 {[%emt 0:00:06]} O-O {[%emt 0:00:28]} 5. c3 {[%emt 0:00:06]} d6 {[%emt 0:03:21]} 6. e4 {[%emt 0:00:20]} Qe8 {[%emt 0:00:45]} 7. e5 {[%emt 0:06:38]} dxe5 {[%emt 0:00:15]} 8. dxe5 {[%emt 0:00:57]} Nfd7 {[%emt 0:03:22]} 9. e6 {[%emt 0:03:21]} fxe6 {[%emt 0:00:05]} 10. Bc4 {[%emt 0:01:09]} Nb6 {[%emt 0:00:33]} 11. Bb3 {[%emt 0:00:48]} Nc6 {[%emt 0:01:41]} 12. Qe2 {[%emt 0:01:00]} Nd5 {[%emt 0:02:21]} 13. O-O {[%emt 0:15:25]} Kh8 {[%emt 0:02:04]} 14. Nc4 {[%emt 0:08:19]} Bd7 {[%emt 0:02:45]} 15. Rfe1 {[%emt 0:06:04]} Rd8 {[%emt 0:02:04]} 16. Bc2 {[%emt 0:07:04]} Nf4 {[%emt 0:15:41]} 17. Qe4 {[%emt 0:09:31]} Nd5 {[%emt 0:11:25]} 18. Qe2 {[%emt 0:01:18]} Nf4 {[%emt 0:06:12]} 19. Qe4 {[%emt 0:00:03]} Qf7 {[%emt 0:00:05]} 20. Nce5 {[%emt 0:14:45]} Nxe5 {[%emt 0:00:08]} 21. Nxe5 {[%emt 0:00:07]} Bxe5 {[%emt 0:00:36]} 22. Qxe5+ {[%emt 0:00:02]} Kg8 {[%emt 0:00:06]} 23. Be4 {[%emt 0:04:49]} Bc8 {[%emt 0:05:34]} 24. Bh6 {[%emt 0:06:24]} Rd2 {[%emt 0:03:35]} 25. Bxf8 {[%emt 0:05:58]} Qxf8 {[%emt 0:02:52]} 26. Re3 {[%emt 0:04:16]} Ne2+ {[%emt 0:01:11]} 27. Kh1 {[%emt 0:01:07]} Qxf2 {[%emt 0:00:19]} 28. Bf3 {[%emt 0:02:20]} 1-0

[Event "WJCC U20 Girls 2019"]
[Site "New Delhi"]
[Date "2019.10.18"]
[Round "5.14"]
[White "Song, Yuxin"]
[Black "Avetisyan, Mariam"]
[Result "1/2-1/2"]
[ECO "A46"]
[WhiteElo "2292"]
[BlackElo "2110"]
[Annotator "RC"]
[PlyCount "66"]
[EventDate "2019.10.15"]
[EventType "swiss"]
[EventCountry "IND"]
[SourceTitle "playchess.com"]
[Source "ChessBase"]
[SourceQuality "1"]
[TimeControl "40/5400+30:1800+30"]

1. d4 {[%emt 0:00:00]} Nf6 {[%emt 0:00:00]} 2. Nf3 {[%emt 0:00:00]} e6 {[%emt 0:00:00]} 3. Bf4 {[%emt 0:00:20]} d5 {[%emt 0:00:33]} 4. e3 {[%emt 0:00:15]} Be7 {[%emt 0:00:08]} 5. Nbd2 {[%emt 0:03:53]} Nbd7 {[%emt 0:02:39]} 6. Ne5 {[%emt 0:04:17]} c5 {[%emt 0:07:07]} 7. c3 {[%emt 0:00:22]} a6 {[%emt 0:14:23]} 8. a4 {[%emt 0:04:03]} Nxe5 {[%emt 0:05:37]} 9. Bxe5 {[%emt 0:06:01]} Bd7 {[%emt 0:06:35]} 10. dxc5 {[%emt 0:13:08]} Bxc5 {[%emt 0:01:14]} 11. b4 {[%emt 0:00:49]} Be7 {[%emt 0:04:35]} 12. Bd3 {[%emt 0:00:27]} O-O {[%emt 0:02:38]} 13. O-O {[%emt 0:02:44]} Rc8 {[%emt 0:05:02]} 14. h3 {[%emt 0:08:46]} Be8 {[%emt 0:04:32]} 15. Qb3 {[%emt 0:10:15]} Bd6 {[%emt 0:11:07]} 16. Bxd6 {[%emt 0:05:39]} Qxd6 {[%emt 0:00:20]} 17. Rfd1 {[%emt 0:00:10]} Qe5 {[%emt 0:12:07]} 18. Rdc1 {[%emt 0:08:03]} Bd7 {[%emt 0:02:19]} 19. b5 {[%emt 0:02:45]} axb5 {[%emt 0:03:35]} 20. Bxb5 {[%emt 0:03:31]} Bxb5 {[%emt 0:00:24]} 21. Qxb5 {[%emt 0:00:37]} Rc7 {[%emt 0:03:54]} 22. c4 {[%emt 0:11:21]} Rfc8 {[%emt 0:01:19]} 23. Rd1 {[%emt 0:00:06]} Rc5 {[%emt 0:06:23]} 24. Qxb7 {[%emt 0:00:07]} dxc4 {[%emt 0:00:06]} 25. a5 {[%emt 0:01:45]} R5c7 {[%emt 0:02:44]} 26. Nf3 {[%emt 0:05:37]} Qc5 {[%emt 0:00:09]} 27. Qb6 {[%emt 0:05:22]} Qxb6 {[%emt 0:00:38]} 28. axb6 {[%emt 0:00:00]} Rb7 {[%emt 0:00:59]} 29. Rdc1 {[%emt 0:00:01]} g6 {[%emt 0:01:04]} 30. Ne5 {[%emt 0:00:54]} c3 {[%emt 0:01:05]} 31. Ra3 {[%emt 0:00:25]} Rxb6 {[%emt 0:01:39]} 32. Raxc3 {[%emt 0:00:04]} Rxc3 {[%emt 0:00:03]} 33. Rxc3 {[%emt 0:00:03]} Rb1+ {[%emt 0:00:10]} 1/2-1/2

[Event "WJCC U20 Girls 2019"]
[Site "New Delhi"]
[Date "2019.10.18"]
[Round "5.15"]
[White "Priyanka, Kumari"]
[Black "Obregon Garcia, Roxangel"]
[Result "1/2-1/2"]
[ECO "B58"]
[WhiteElo "1921"]
[BlackElo "2267"]
[Annotator "NA"]
[PlyCount "113"]
[EventDate "2019.10.15"]
[EventType "swiss"]
[EventCountry "IND"]
[SourceTitle "playchess.com"]
[Source "ChessBase"]
[SourceQuality "1"]
[TimeControl "40/5400+30:1800+30"]

1. e4 {[%emt 0:00:00]} c5 {[%emt 0:00:00]} 2. Nf3 {[%emt 0:00:00]} Nc6 {[%emt 0:00:00]} 3. d4 {[%emt 0:00:00]} cxd4 {[%emt 0:00:00]} 4. Nxd4 {[%emt 0:00:00]} Nf6 {[%emt 0:00:00]} 5. Nc3 {[%emt 0:00:10]} d6 {[%emt 0:00:00]} 6. Be2 {[%emt 0:00:55]} e5 {[%emt 0:00:01]} 7. Nf3 {[%emt 0:00:51]} h6 {[%emt 0:01:01]} 8. O-O {[%emt 0:00:19]} Be7 {[%emt 0:00:13]} 9. Re1 {[%emt 0:01:01]} O-O {[%emt 0:00:25]} 10. Bc4 {[%emt 0:00:48]} Be6 {[%emt 0:18:35]} 11. Nd5 {[%emt 0:02:18]} Rc8 {[%emt 0:02:45]} 12. c3 {[%emt 0:02:13]} Nb8 {[%emt 0:10:04]} 13. Nxf6+ {[%emt 0:07:41]} Bxf6 {[%emt 0:00:14]} 14. Bd5 {[%emt 0:00:25]} Nc6 {[%emt 0:11:38]} 15. Be3 {[%emt 0:06:21]} Bg4 {[%emt 0:04:01]} 16. h3 {[%emt 0:00:46]} Bh5 {[%emt 0:00:04]} 17. g4 {[%emt 0:09:36]} Bg6 {[%emt 0:00:03]} 18. Qd3 {[%emt 0:01:14]} Qd7 {[%emt 0:07:08]} 19. Rad1 {[%emt 0:03:48]} Rfd8 {[%emt 0:00:44]} 20. Nh2 {[%emt 0:02:32]} b6 {[%emt 0:06:25]} 21. Qb5 {[%emt 0:17:15]} Ne7 {[%emt 0:06:33]} 22. Qxd7 {[%emt 0:00:23]} Rxd7 23. f3 {[%emt 0:01:02]} Nxd5 {[%emt 0:01:16]} 24. Rxd5 {[%emt 0:00:36]} Be7 {[%emt 0:00:06]} 25. Red1 {[%emt 0:07:39]} f6 {[%emt 0:01:20]} 26. R5d3 {[%emt 0:02:33]} Bf7 {[%emt 0:13:06]} 27. b3 {[%emt 0:01:36]} b5 {[%emt 0:00:07]} 28. Nf1 {[%emt 0:02:19]} a5 {[%emt 0:13:23]} 29. Bf2 {[%emt 0:07:00]} a4 {[%emt 0:00:44]} 30. Rb1 {[%emt 0:01:01]} axb3 {[%emt 0:02:14]} 31. axb3 {[%emt 0:00:08]} Rdc7 {[%emt 0:00:03]} 32. Be1 {[%emt 0:02:18]} d5 {[%emt 0:00:04]} 33. Ng3 {[%emt 0:09:19]} Bc5+ {[%emt 0:01:33]} 34. Kg2 {[%emt 0:00:39]} d4 {[%emt 0:01:00]} 35. Ne2 {[%emt 0:02:46]} dxc3 {[%emt 0:01:15]} 36. Rxc3 {[%emt 0:02:09]} b4 {[%emt 0:00:31]} 37. Rd3 {[%emt 0:02:31]} Bf8 {[%emt 0:00:40]} 38. Rbd1 {[%emt 0:01:06]} Rc2 {[%emt 0:00:13]} 39. R1d2 {[%emt 0:00:54]} Rxd2 {[%emt 0:00:37]} 40. Bxd2 {[%emt 0:00:08]} Be6 {[%emt 0:00:29]} 41. Kf1 {[%emt 0:10:51]} h5 {[%emt 0:07:46]} 42. gxh5 {[%emt 0:06:16]} Bxh3+ {[%emt 0:00:30]} 43. Ke1 {[%emt 0:00:14]} Be6 {[%emt 0:00:14]} 44. f4 {[%emt 0:01:34]} exf4 {[%emt 0:10:04]} 45. Nxf4 {[%emt 0:00:36]} Bf7 {[%emt 0:00:10]} 46. Kf2 {[%emt 0:09:26]} Bc5+ {[%emt 0:07:05]} 47. Be3 {[%emt 0:04:49]} Kh7 {[%emt 0:05:01]} 48. Bxc5 {[%emt 0:02:22]} Rxc5 {[%emt 0:00:01]} 49. Rd4 {[%emt 0:00:10]} Rc2+ {[%emt 0:01:38]} 50. Kg1 {[%emt 0:01:17]} Rb2 {[%emt 0:02:39]} 51. Rxb4 {[%emt 0:00:14]} Rxb3 {[%emt 0:00:16]} 52. Rxb3 {[%emt 0:02:40]} Bxb3 {[%emt 0:00:02]} 53. Kf2 {[%emt 0:00:23]} Kh6 {[%emt 0:00:10]} 54. Kg3 {[%emt 0:00:45]} Bd1 {[%emt 0:01:06]} 55. Ne6 {[%emt 0:00:55]} Bxh5 {[%emt 0:00:36]} 56. Kf4 {[%emt 0:00:30]} Bf7 {[%emt 0:01:27]} 57. Nxg7 {[%emt 0:00:15]} 1/2-1/2

[Event "WJCC U20 Girls 2019"]
[Site "New Delhi"]
[Date "2019.10.18"]
[Round "5.17"]
[White "Zhang, Xiao"]
[Black "Salimova, Nurgyul"]
[Result "1/2-1/2"]
[ECO "D86"]
[WhiteElo "2053"]
[BlackElo "2415"]
[Annotator "NA"]
[PlyCount "48"]
[EventDate "2019.10.15"]
[EventType "swiss"]
[EventCountry "IND"]
[SourceTitle "playchess.com"]
[Source "ChessBase"]
[SourceQuality "1"]
[TimeControl "40/5400+30:1800+30"]

1. d4 Nf6 2. c4 g6 3. Nc3 d5 4. cxd5 Nxd5 5. e4 Nxc3 6. bxc3 Bg7 7. Bc4 c5 8. Ne2 O-O 9. Be3 Nc6 10. Rc1 b6 11. O-O Qc7 12. Qa4 Bb7 13. Rfd1 Na5 14. Bd3 Rfd8 15. d5 e6 (15... c4 $5 {[%cal Rc4d3]} 16. Bc2 e6 $11) 16. Bg5 Bc8 $18 (16... c4 $11 17. Bxd8 Rxd8) 17. Bh4 f6 18. c4 e5 19. Nc3 Bd7 20. Qc2 Nb7 21. a4 Nd6 22. Ra1 a5 23. Rab1 Re8 24. Rb3 Rec8 1/2-1/2

[Event "WJCC U20 Girls 2019"]
[Site "New Delhi"]
[Date "2019.10.18"]
[Round "5.19"]
[White "Bakshi, Rutuja"]
[Black "Munkhzul, Turmunkh"]
[Result "0-1"]
[ECO "E16"]
[WhiteElo "2029"]
[BlackElo "2332"]
[Annotator "NA"]
[PlyCount "113"]
[EventDate "2019.10.15"]
[EventType "swiss"]
[EventCountry "IND"]
[SourceTitle "playchess.com"]
[Source "ChessBase"]
[SourceQuality "1"]
[TimeControl "40/5400+30:1800+30"]

1. Nf3 {[%emt 0:00:00]} Nf6 {[%emt 0:00:34]} 2. c4 {[%emt 0:00:41]} e6 {[%emt 0:02:27]} 3. d4 {[%emt 0:02:29]} b6 {[%emt 0:01:20]} 4. g3 {[%emt 0:00:56]} Bb7 {[%emt 0:01:38]} 5. Bg2 {[%emt 0:00:07]} Bb4+ {[%emt 0:00:57]} 6. Bd2 {[%emt 0:00:37]} Bxd2+ {[%emt 0:01:07]} 7. Nbxd2 {[%emt 0:00:58]} O-O {[%emt 0:01:12]} 8. Qc2 {[%emt 0:02:36]} d6 {[%emt 0:03:14]} 9. O-O {[%emt 0:02:56]} Nbd7 {[%emt 0:03:11]} 10. Rad1 {[%emt 0:04:30]} Qe7 11. e4 {[%emt 0:00:30]} e5 {[%emt 0:07:41]} 12. Rfe1 {[%emt 0:06:14]} a5 {[%emt 0:03:02]} 13. b3 {[%emt 0:02:29]} Rfe8 {[%emt 0:05:05]} 14. h3 {[%emt 0:07:09]} Nf8 {[%emt 0:02:49]} 15. Qc3 {[%emt 0:03:59]} Ng6 {[%emt 0:02:06]} 16. Nh2 {[%emt 0:05:17]} exd4 {[%emt 0:06:30]} 17. Qxd4 {[%emt 0:00:16]} Qe5 {[%emt 0:00:39]} 18. Qd3 {[%emt 0:07:09]} Qc5 {[%emt 0:03:13]} 19. Nhf1 {[%emt 0:09:13]} Ne5 {[%emt 0:03:16]} 20. Qb1 {[%emt 0:03:11]} Nc6 {[%emt 0:17:21]} 21. Ne3 {[%emt 0:04:52]} Nd4 {[%emt 0:03:43]} 22. Qd3 {[%emt 0:05:47]} Nc6 {[%emt 0:01:24]} 23. Qb1 {[%emt 0:01:40]} Nb4 {[%emt 0:01:24]} 24. Nd5 {[%emt 0:08:39]} Nbxd5 {[%emt 0:02:10]} 25. cxd5 {[%emt 0:04:04]} b5 {[%emt 0:01:35]} 26. Nf3 {[%emt 0:04:37]} Rad8 {[%emt 0:03:47]} 27. Qd3 {[%emt 0:02:17]} Qb6 {[%emt 0:03:58]} 28. Nd4 {[%emt 0:02:24]} b4 {[%emt 0:00:26]} 29. Bf1 {[%emt 0:03:15]} Re7 {[%emt 0:00:57]} 30. Re3 {[%emt 0:03:02]} Rde8 {[%emt 0:01:06]} 31. Bg2 {[%emt 0:01:43]} Nd7 {[%emt 0:03:18]} 32. Rde1 {[%emt 0:00:47]} Nc5 {[%emt 0:01:33]} 33. Qd1 {[%emt 0:00:42]} f6 {[%emt 0:03:26]} 34. Kh2 {[%emt 0:01:01]} Bc8 {[%emt 0:01:46]} 35. Qd2 {[%emt 0:00:29]} Bd7 {[%emt 0:01:33]} 36. f4 {[%emt 0:00:35]} Ra8 {[%emt 0:02:19]} 37. f5 {[%emt 0:00:40]} Bb5 {[%emt 0:02:08]} 38. g4 {[%emt 0:00:29]} Nd7 {[%emt 0:00:27]} 39. Rg3 {[%emt 0:00:26]} h6 {[%emt 0:01:14]} 40. h4 {[%emt 0:00:18]} Kf7 {[%emt 0:00:12]} 41. Ne6 {[%emt 0:30:47]} Rh8 {[%emt 0:30:33]} 42. Bf3 {[%emt 0:00:36]} c5 {[%emt 0:02:34]} 43. Kg2 {[%emt 0:00:00]} Ree8 {[%emt 0:00:00]} 44. g5 {[%emt 0:00:00]} hxg5 {[%emt 0:00:00]} 45. hxg5 {[%emt 0:00:00]} Reg8 {[%emt 0:00:00]} 46. Rh1 {[%emt 0:00:00]} Rxh1 {[%emt 0:00:00]} 47. Kxh1 {[%emt 0:00:00]} Qb8 48. Bh5+ {[%emt 0:00:00]} Ke7 {[%emt 0:00:00]} 49. Qg2 {[%emt 0:00:00]} g6 {[%emt 0:00:00]} 50. gxf6+ {[%emt 0:00:00]} Nxf6 {[%emt 0:00:00]} 51. Bxg6 {[%emt 0:00:28]} Rh8+ {[%emt 0:00:00]} 52. Rh3 {[%emt 0:02:01]} Bd3 {[%emt 0:00:00]} 53. Ng5 {[%emt 0:00:42]} c4 {[%emt 0:00:00]} 54. bxc4 {[%emt 0:00:44]} b3 {[%emt 0:00:00]} 55. axb3 {[%emt 0:00:36]} Rh7 56. Rh6 Rxh6+ {[%emt 0:00:00]} 57. Qh3 {[%emt 0:01:49]} 0-1

[Event "WJCC U20 Girls 2019"]
[Site "New Delhi"]
[Date "2019.10.18"]
[Round "5.21"]
[White "Savitha Shri B"]
[Black "Kiolbasa, Oliwia"]
[Result "0-1"]
[ECO "B18"]
[WhiteElo "1916"]
[BlackElo "2223"]
[Annotator "NA"]
[PlyCount "118"]
[EventDate "2019.10.15"]
[EventType "swiss"]
[EventCountry "IND"]
[SourceTitle "playchess.com"]
[Source "ChessBase"]
[SourceQuality "1"]
[TimeControl "40/5400+30:1800+30"]

1. e4 {[%emt 0:00:00]} c6 {[%emt 0:00:00]} 2. d4 {[%emt 0:00:00]} d5 {[%emt 0:00:00]} 3. Nc3 {[%emt 0:00:38]} dxe4 {[%emt 0:00:03]} 4. Nxe4 {[%emt 0:00:06]} Bf5 {[%emt 0:00:10]} 5. Ng3 {[%emt 0:00:08]} Bg6 {[%emt 0:00:12]} 6. h4 {[%emt 0:00:05]} h6 {[%emt 0:00:10]} 7. Nf3 {[%emt 0:00:05]} e6 {[%emt 0:00:18]} 8. Ne5 {[%emt 0:03:38]} Bh7 {[%emt 0:00:13]} 9. c3 {[%emt 0:03:16]} Nd7 {[%emt 0:03:21]} 10. Nxd7 {[%emt 0:01:20]} Qxd7 {[%emt 0:00:16]} 11. Bd3 {[%emt 0:00:23]} Bxd3 {[%emt 0:00:41]} 12. Qxd3 {[%emt 0:00:09]} Nf6 {[%emt 0:07:07]} 13. Be3 {[%emt 0:01:03]} Be7 {[%emt 0:02:47]} 14. O-O-O {[%emt 0:01:47]} O-O-O {[%emt 0:13:08]} 15. Kb1 {[%emt 0:00:36]} Kb8 {[%emt 0:02:31]} 16. c4 {[%emt 0:07:09]} c5 {[%emt 0:12:07]} 17. Qc3 {[%emt 0:09:25]} cxd4 {[%emt 0:07:37]} 18. Bxd4 {[%emt 0:00:27]} Qc6 {[%emt 0:01:52]} 19. f3 {[%emt 0:01:12]} b6 {[%emt 0:05:33]} 20. Rhe1 {[%emt 0:02:26]} Rd7 {[%emt 0:06:47]} 21. Ne2 {[%emt 0:04:41]} Rhd8 {[%emt 0:13:10]} 22. Be5+ {[%emt 0:02:16]} Ka8 {[%emt 0:01:26]} 23. Nd4 {[%emt 0:01:24]} Qb7 {[%emt 0:00:18]} 24. Qb3 {[%emt 0:02:08]} Ne8 {[%emt 0:00:53]} 25. Nb5 {[%emt 0:01:53]} Bxh4 {[%emt 0:06:35]} 26. Rxd7 {[%emt 0:04:37]} Qxd7 {[%emt 0:00:02]} 27. Rc1 {[%emt 0:05:40]} Qd3+ {[%emt 0:08:37]} 28. Qxd3 {[%emt 0:00:05]} Rxd3 {[%emt 0:00:03]} 29. c5 {[%emt 0:03:19]} bxc5 {[%emt 0:01:54]} 30. Rxc5 {[%emt 0:01:34]} Rd5 {[%emt 0:00:47]} 31. Rxd5 {[%emt 0:03:10]} exd5 {[%emt 0:00:02]} 32. Nc3 {[%emt 0:00:01]} Bf6 {[%emt 0:02:02]} 33. Bxf6 {[%emt 0:01:06]} Nxf6 {[%emt 0:00:01]} 34. Nb5 {[%emt 0:00:05]} Ne8 {[%emt 0:00:21]} 35. Kc2 {[%emt 0:01:29]} Kb7 {[%emt 0:00:26]} 36. Kd3 {[%emt 0:00:09]} a6 {[%emt 0:00:24]} 37. Nd4 {[%emt 0:01:06]} Nd6 {[%emt 0:02:31]} 38. Nc2 {[%emt 0:00:16]} Nf5 {[%emt 0:01:29]} 39. g4 {[%emt 0:02:54]} Ne7 {[%emt 0:00:29]} 40. Kd4 {[%emt 0:00:52]} Kb6 {[%emt 0:00:32]} 41. b4 {[%emt 0:35:13]} Kc6 {[%emt 0:09:24]} 42. a4 {[%emt 0:00:00]} Kd6 {[%emt 0:03:44]} 43. b5 {[%emt 0:00:00]} axb5 {[%emt 0:00:06]} 44. axb5 {[%emt 0:00:00]} g6 {[%emt 0:00:16]} 45. Ne3 {[%emt 0:00:00]} h5 {[%emt 0:01:39]} 46. Ng2 {[%emt 0:00:00]} f6 {[%emt 0:06:19]} 47. gxh5 {[%emt 0:00:00]} Nf5+ {[%emt 0:00:05]} 48. Kc3 {[%emt 0:00:00]} gxh5 {[%emt 0:00:46]} 49. Nf4 {[%emt 0:00:00]} h4 {[%emt 0:00:35]} 50. Kb4 {[%emt 0:00:00]} Nd4 {[%emt 0:03:24]} 51. Ka5 {[%emt 0:00:00]} Nxf3 {[%emt 0:00:51]} 52. b6 {[%emt 0:00:00]} Ne5 {[%emt 0:00:14]} 53. b7 {[%emt 0:02:55]} Nd7 {[%emt 0:03:07]} 54. Kb5 {[%emt 0:07:15]} f5 {[%emt 0:00:14]} 55. Nd3 {[%emt 0:13:28]} Kc7 {[%emt 0:03:01]} 56. Ka6 {[%emt 0:02:01]} h3 {[%emt 0:00:57]} 57. Ka7 {[%emt 0:01:16]} h2 {[%emt 0:00:18]} 58. Nb4 {[%emt 0:02:03]} h1=Q {[%emt 0:01:18]} 59. Nxd5+ {[%emt 0:00:22]} Kd6 {[%emt 0:00:21]} 0-1

[Event "WJCC U20 Girls 2019"]
[Site "New Delhi"]
[Date "2019.10.18"]
[Round "5.22"]
[White "Onur, Cigdem"]
[Black "Ulziikhishigjargal, Ochirkhuyag"]
[Result "1-0"]
[ECO "C49"]
[WhiteElo "1913"]
[BlackElo "2194"]
[Annotator "NA"]
[PlyCount "132"]
[EventDate "2019.10.15"]
[EventType "swiss"]
[EventCountry "IND"]
[SourceTitle "playchess.com"]
[Source "ChessBase"]
[SourceQuality "1"]
[TimeControl "40/5400+30:1800+30"]

1. e4 {[%emt 0:00:00]} e5 {[%emt 0:00:00]} 2. Nf3 {[%emt 0:00:00]} Nc6 {[%emt 0:00:00]} 3. Nc3 {[%emt 0:00:00]} Nf6 {[%emt 0:00:02]} 4. Bb5 {[%emt 0:00:00]} Bb4 {[%emt 0:00:24]} 5. O-O {[%emt 0:00:11]} O-O {[%emt 0:01:45]} 6. d3 {[%emt 0:00:10]} Bxc3 {[%emt 0:01:24]} 7. bxc3 {[%emt 0:00:40]} d6 {[%emt 0:00:06]} 8. Bg5 {[%emt 0:07:49]} Qe7 {[%emt 0:02:07]} 9. Re1 {[%emt 0:01:59]} Nd8 {[%emt 0:01:05]} 10. d4 {[%emt 0:01:09]} Ne6 {[%emt 0:02:37]} 11. Bc1 {[%emt 0:02:52]} c6 {[%emt 0:03:06]} 12. Bf1 {[%emt 0:03:40]} Rd8 {[%emt 0:07:01]} 13. g3 {[%emt 0:10:41]} Nf8 {[%emt 0:08:49]} 14. Nh4 {[%emt 0:16:28]} h6 {[%emt 0:01:26]} 15. Qe2 {[%emt 0:16:23]} Re8 {[%emt 0:08:50]} 16. Bg2 {[%emt 0:09:35]} Be6 {[%emt 0:04:39]} 17. a4 {[%emt 0:08:05]} b6 {[%emt 0:02:48]} 18. Ba3 {[%emt 0:00:47]} c5 {[%emt 0:00:16]} 19. Bb2 {[%emt 0:10:11]} Qc7 {[%emt 0:04:36]} 20. d5 {[%emt 0:02:34]} Bd7 {[%emt 0:01:08]} 21. c4 {[%emt 0:01:32]} g5 {[%emt 0:04:24]} 22. Nf5 {[%emt 0:03:07]} Bxf5 {[%emt 0:02:38]} 23. exf5 {[%emt 0:00:04]} Qd7 {[%emt 0:02:03]} 24. g4 {[%emt 0:00:40]} Reb8 {[%emt 0:01:34]} 25. Reb1 {[%emt 0:01:00]} a6 {[%emt 0:02:11]} 26. Bc1 {[%emt 0:00:23]} N8h7 {[%emt 0:01:38]} 27. Ra3 {[%emt 0:01:23]} Ra7 {[%emt 0:00:32]} 28. h3 {[%emt 0:01:31]} Rab7 {[%emt 0:01:13]} 29. Bf1 {[%emt 0:00:13]} Ne8 {[%emt 0:04:52]} 30. f3 {[%emt 0:00:23]} Nc7 {[%emt 0:00:11]} 31. Be3 {[%emt 0:01:17]} Kg7 {[%emt 0:05:21]} 32. Kf2 {[%emt 0:00:11]} Qe8 {[%emt 0:02:04]} 33. Qd2 {[%emt 0:00:35]} Qe7 {[%emt 0:03:02]} 34. Bd3 {[%emt 0:00:23]} Nf6 {[%emt 0:00:10]} 35. Bxg5 {[%emt 0:00:59]} hxg5 {[%emt 0:00:09]} 36. Qxg5+ {[%emt 0:00:04]} Kf8 {[%emt 0:00:13]} 37. Qh6+ {[%emt 0:00:32]} Ke8 {[%emt 0:00:37]} 38. g5 {[%emt 0:00:41]} Ng8 {[%emt 0:02:30]} 39. Qh8 {[%emt 0:00:42]} Qf8 {[%emt 0:01:04]} 40. f6 {[%emt 0:00:29]} Ne7 {[%emt 0:15:34]} 41. Qxf8+ {[%emt 0:06:03]} Kxf8 {[%emt 0:00:00]} 42. fxe7+ {[%emt 0:02:00]} Kxe7 {[%emt 0:00:02]} 43. Rab3 {[%emt 0:03:32]} a5 {[%emt 0:03:06]} 44. h4 {[%emt 0:04:12]} f6 {[%emt 0:03:25]} 45. Kg3 {[%emt 0:09:57]} Ne8 {[%emt 0:00:32]} 46. Kg4 {[%emt 0:03:47]} fxg5 {[%emt 0:02:22]} 47. hxg5 {[%emt 0:00:14]} Ng7 {[%emt 0:00:04]} 48. f4 {[%emt 0:01:05]} exf4 {[%emt 0:00:48]} 49. Re1+ {[%emt 0:00:06]} Kf7 {[%emt 0:00:28]} 50. Rf1 {[%emt 0:00:18]} Re7 {[%emt 0:02:04]} 51. Rxf4+ {[%emt 0:00:11]} Kg8 {[%emt 0:00:00]} 52. Bg6 {[%emt 0:00:56]} Re1 {[%emt 0:02:27]} 53. Bf7+ {[%emt 0:00:37]} Kf8 {[%emt 0:00:01]} 54. Be6+ {[%emt 0:02:21]} Ke8 {[%emt 0:00:04]} 55. Rbf3 {[%emt 0:00:59]} Rg1+ {[%emt 0:00:43]} 56. Kh4 {[%emt 0:00:11]} Nxe6 {[%emt 0:00:30]} 57. dxe6 {[%emt 0:00:18]} Ke7 {[%emt 0:00:03]} 58. Rf7+ {[%emt 0:01:55]} Kxe6 {[%emt 0:00:05]} 59. R7f6+ {[%emt 0:00:51]} Ke5 {[%emt 0:01:45]} 60. R6f5+ {[%emt 0:00:26]} Ke4 {[%emt 0:00:23]} 61. R5f4+ {[%emt 0:00:15]} Ke5 {[%emt 0:00:05]} 62. Rf5+ {[%emt 0:00:24]} Ke6 {[%emt 0:00:30]} 63. Rf6+ {[%emt 0:00:10]} Kd7 {[%emt 0:00:51]} 64. Rf7+ {[%emt 0:00:15]} Kc6 {[%emt 0:00:17]} 65. Rf8 {[%emt 0:00:54]} Rxf8 {[%emt 0:08:02]} 66. Rxf8 {[%emt 0:00:04]} Kd7 {[%emt 0:00:24]} 1-0